Workbook

Sheet البيانات الرئيسية
B3: اسم العهدة | C3: الشهر | D3: اسم المشروع | E3: رقم الكشف
B4: عهدة عبد الرحمن المليح | C4: يناير | D4: مصروفات عمومية | E4: 1
C5: فبراير | D5: ورشة | E5: 2
C6: مارس | D6: خلاطة | E6: 3
C7: أبريل | D7: النماص5 | E7: 4
C8: مايو | D8: بللسمر01 | E8: 5
C9: يونيو | D9: كسارة | E9: 6
C10: يوليو | D10: تسويات | E10: 7
C11: أغسطس | E11: 8
C12: سبتمبر | E12: 9
C13: أكتوبر | E13: 10
C14: نوفمبر | E14: 11
C15: ديسمبر | E15: 12

Sheet مقدمة

Sheet يناير
J1: بيان بالعهدة من تاريخ 01 يناير 2020م الي 31 يناير 2020م
J3: م | K3: البيان | L3: التاريخ | M3: المبلغ
J4: 1 | K4: من جل صيانة طفيات الحريق | L4: 2020-01-01 | M4: 550
J5: 2 | K5: قطع غيار وصيانة | L5: 2020-04-01 | M5: 8900
A6: التاريخ : | C6: 2020-01-07 | E6: رصيد العهدة | F6: =M143+37711.67 -> 110679.67 | G6: الرصيد المتبقي | H6: =F6-H141 -> 33049.925 | J6: 3 | K6: قطع غيار وصيانة سيارة نيسان التيما | L6: 2020-04-01 | M6: 7000
A7: التاريخ | B7: رقم الكشف | C7: رقم الفاتورة | D7: البيان | E7: اسم المشروع | F7: المبلغ | G7: القيمة المضافة | H7: اجمالي المبلغ | J7: 5 | K7: صيانة معدات | L7: 2020-06-01 | M7: 1200
A8: 2020-01-01 | B8: 1 | C8: 188 | D8: ضيافة مكتب تنومة | E8: مصروفات عمومية ابها | F8: 56 | G8: 0 | H8: =F8+G8 -> 56 | J8: 6 | K8: صيانة معدات | L8: 2020-08-01 | M8: 2500
A9: 2020-01-01 | B9: 1 | C9: 277 | D9: لحام بكت مهع تصفيح بوبكات لافم2 | E9: النماص 05 | F9: 900 | G9: 0 | H9: =F9+G9 -> 900 | J9: 7 | K9: عهدة الي عبد الرحمن | L9: 2020-09-01 | M9: 1500
A10: 2020-01-01 | B10: 1 | C10: 409 | D10: كبس رومانات ولحام نحاس سيارة مازدا رقم 3369 | E10: الخلاطة | F10: 100 | G10: 0 | H10: 100 | J10: 8 | K10: صيانة قلاب رقم 2872 | L10: 2020-12-01 | M10: 3000
A11: 2020-01-01 | B11: 1 | C11: 149 | D11: سير مع مسمار قلاب رقم 2869 | E11: تنومة 14 | F11: 80 | G11: 0 | H11: 80 | J11: 9 | K11: صيانة ماكينة لحام | L11: 13/1/2020 | M11: 800
A12: 2020-01-01 | B12: 1 | C12: 720 | D12: اجرة نقل سيارة نيسان التيما من الورشة الي الخميس | E12: تنومة 14 | F12: 300 | G12: 0 | H12: 300 | J12: 10 | K12: صيانة قلابات | L12: 15/1/2020 | M12: 1000
A13: 2020-01-01 | B13: 1 | C13: 16801 | D13: محبس هواء إيطالي كسارة | E13: كسارة | F13: 34 | G13: 1.7 | H13: 35.7 | J13: 11 | K13: عهدة الي عبد الرحمن | L13: 16/1/2020 | M13: 1000
A14: 2020-01-01 | B14: 1 | C14: 16790 | D14: قفيز وشد وصل ومحبس وماسورة للكسارة | E14: كسارة | F14: 196.5 | G14: 9.82 | H14: 206.32 | J14: 12 | K14: عهدة سداد نقليات | L14: 18/1/2020 | M14: 3000
A15: 2020-01-01 | B15: 1 | C15: 96 | D15: رمان روسي وسير مقاس B88 وB93 - 270 للكسارة | E15: كسارة | F15: 5000 | G15: 250 | H15: 5250 | J15: 13 | K15: قيمة اصلاح قلاب رقم 2871 | L15: 18/1/2020 | M15: 6000
A16: 2020-01-02 | B16: 1 | C16: 18395 | D16: جزمة عمل لااشد الإسلام | E16: تنومة 14 | F16: 42.86 | G16: 2.14 | H16: 45 | J16: 14 | K16: سداد حساب ورشة السعادة | L16: 18/1/2020 | M16: 10000
A17: 2020-01-03 | B17: 1 | C17: 13977 | D17: اجرة نقل قطع غيار سيارة ام سي ون | E17: تنومة 14 | F17: 155 | G17: 0 | H17: 155 | J17: 15 | K17: صيانة معدات | L17: 19/1/2020 | M17: 4000
A18: 2020-01-04 | B18: 1 | C18: 9674 | D18: طقم مشاحم منوعة للكسارة 2 طقم | E18: كسارة | F18: 123.82 | G18: 6.19 | H18: 130.01 | J18: 16 | K18: صيانة معدات | L18: 20/1/2020 | M18: 3500
A19: 2020-01-04 | B19: 1 | C19: 9668 | D19: شاكوش وزن 4 كيلو للكسارة وشاكوش 2 كيلو عدد2 | E19: كسارة | F19: 200 | G19: 10 | H19: 210 | J19: 17 | K19: سداد فاتورة مكتبة تكسب | L19: 20/1/2020 | M19: 3200
A20: 2020-01-04 | B20: 1 | C20: 70121299246 | D20: مسامير متنوهة للكسارة | E20: كسارة | F20: 314.29 | G20: 15.71 | H20: 330 | J20: 18 | K20: شراء سيفتي للعمال | L20: 21/1/2020 | M20: 1850
A21: 2020-01-04 | B21: 1 | C21: 9667 | D21: مسامير مع وردة وصاملوة بريمة كسارة | E21: كسارة | F21: 99.4 | G21: 4.97 | H21: 104.37 | J21: 19 | K21: صيانة فرادة الاسفلت الجديدة | L21: 23/1/2020 | M21: 1300
A22: 2020-01-04 | B22: 1 | C22: 141 | D22: صاج حديد اسود مقاس 2.5 مم للكسارة بريمة | E22: كسارة | F22: 1142.86 | G22: 57.14 | H22: 1200 | J22: 20 | K22: قطع غيار | L22: 23/1/2020 | M22: 2500
A23: 2020-01-05 | B23: 1 | C23: بدون | D23: صيانة طفايات حريف للخلاطة | E23: خلاطة | F23: 590 | G23: 0 | H23: 590 | J23: 21 | K23: قطع غيار | L23: 23/1/2020 | M23: 2268
A24: 2020-01-05 | B24: 1 | C24: 329 | D24: برميل زيت عدد 2 وكرتون زيت بنزين | E24: كسارة +تنومة 14 | F24: 2830.5 | G24: 141.52 | H24: 2972.02 | J24: 22 | K24: قطع غيار | L24: 25/1/2020 | M24: 2500
A25: 2020-01-07 | B25: 1 | C25: 458 | D25: اسمنت لصب قاعدة مولد كسارة | E25: كسارة | F25: 196 | G25: 0 | H25: 196 | J25: 23 | K25: عهدة عبد الرحمن | L25: 27/1/2020 | M25: 1400
B26: 1 | C26: اجمالى | F26: =SUM(F8:F25) -> 12361.23 | G26: =SUM(G8:G25) -> 499.19 | H26: 12860.42
A27: 2020-01-05 | B27: 2 | C27: 6465 | D27: طعام للعمال مشروع النماص | E27: النماص 05 | F27: 19 | G27: 0 | H27: =F27+G27 -> 19
A28: 1900-01-05 | B28: 2 | C28: بدون | D28: اكل للعمال | E28: النماص 05 | F28: 9 | G28: 0 | H28: =F28+G28 -> 9
A29: 2020-01-06 | B29: 2 | C29: 91 | D29: اجرة نقل جنزير فرادة من الخميس الي تنومة | E29: النماص 05 | F29: 400 | G29: 0 | H29: 400
A30: 2020-01-07 | B30: 2 | C30: 16902 | D30: مواد سباكة للكسارة | E30: الكسارة | F30: 467 | G30: 23.35 | H30: 490.35
A31: 2020-01-08 | B31: 2 | C31: 39403 | D31: اكل للميكانكية تركيب جنزير فرادة | E31: النماص 05 | F31: 43 | G31: 0 | H31: 43
A32: 2020-01-08 | B32: 2 | C32: 1998 | D32: بنزبن سيارة مازدا رقم 3369 | E32: الخلاطة | F32: 20 | G32: 0 | H32: 20
A33: 2020-01-08 | B33: 2 | C33: 100 | D33: طرمبة دركسيون سيارة متسوبيشي رقم 2413 | E33: الخلاطة | F33: 800 | G33: 0 | H33: 800
A34: 2020-01-08 | B34: 2 | C34: 97 | D34: فلاتر زيت وطرمبة كلتش وقماش سيارة مازدا رقم 3371 | E34: تنومة 14 | F34: 328.58 | G34: 16.43 | H34: 345.01
A35: 2020-01-08 | B35: 2 | C35: 187730 | D35: فلتر زيت وسلك دعسة ديزل رصاصة ترابية ديناباك | E35: بللسمر 01 | F35: 571.38 | G35: 28.57 | H35: 599.95
A36: 2020-01-08 | B36: 2 | C36: 22436 | D36: مشاحم للكسارة مع صابونات للشيول 2183 | E36: الكسارة | F36: 33.33 | G36: 1.67 | H36: 35
A37: 2020-01-08 | B37: 2 | C37: 10096 | D37: مشام مقاس 12 مم ومشاحام سواء سن ناعم للكسارة | E37: الكسارة | F37: 11.45 | G37: 0.57 | H37: 12.02
A38: 2020-01-09 | B38: 2 | C38: 9206 | D38: غسيل سيارة انفنتي وسيارة مازدا رقم 3369 | E38: مصروفات عمومية ابها | F38: 60 | G38: 0 | H38: 60
A39: 2020-01-09 | B39: 2 | C39: 188 | D39: عشاء للعمال تركسب جنزير فرادة | E39: النماص 05 | F39: 38 | G39: 0 | H39: 38
A40: 2020-01-09 | B40: 2 | C40: 262 | D40: تصليح 2 صدام مع رش بوهية وتلميع سيارة انفنتي | E40: مصروفات عمومية ابها | F40: 1500 | G40: 0 | H40: 1500
A41: 2020-01-09 | B41: 2 | C41: 102 | D41: مسامير جنزير فرادة فوجلي | E41: النماص 05 | F41: 24 | G41: 0 | H41: 24
A42: 2020-01-10 | B42: 2 | C42: 2729 | D42: عشاء للعمال | E42: النماص 05 | F42: 25 | G42: 0 | H42: 25
B43: 2 | C43: اجمالى | F43: =SUM(F27:F42) -> 4349.74 | G43: =SUM(G27:G42) -> 70.59 | H43: 4420.33
A44: 2020-01-20 | B44: 3 | C44: 72855 | D44: بطارية رصاصة ترابية | E44: بللسمر 01 | F44: 370 | G44: =F44*5% -> 18.5 | H44: =F44+G44 -> 388.5 | I44: 388.5
A45: 2020-01-20 | B45: 3 | C45: 523584 | D45: طرمبة ديزل يدويه للرصاصة الكفرات | E45: بللسمر 01 | F45: 209.29 | G45: =F45*5% -> 10.4645 | H45: =F45+G45 -> 219.7545 | I45: 219.75
A46: 2020-01-01 | B46: 3 | C46: 878 | D46: سفتي | E46: كسارة | F46: 149.52 | G46: 7.476 | H46: 156.996 | I46: 157
A47: 2020-01-02 | B47: 3 | C47: 877 | D47: شراء محرك كمبروسر هواء للكسارة | E47: كسارة | F47: 1900 | G47: 95 | H47: 1995 | I47: 1995
A48: 2020-01-02 | B48: 3 | C48: 848 | D48: لي هواء3/4للكسارة+كفوف لحام طويل احمر | E48: كسارة | F48: 240 | G48: 12 | H48: 252 | I48: 252
A49: 2020-01-21 | B49: 3 | C49: 2270 | D49: عشاء عمال مكانيكي للورشة | E49: النماص 5 | F49: 31 | G49: 0 | H49: 31 | I49: 31
A50: 2020-01-22 | B50: 3 | C50: 2944 | D50: مبرد قير سيارة التيما6339 | E50: خلاطة | F50: 654 | G50: 32.7 | H50: 686.7 | I50: 686.7
A51: 2020-01-22 | B51: 3 | C51: 73043 | D51: سيخ لحام4مل للكسارة | E51: كسارة | F51: 390 | G51: 19.5 | H51: 409.5 | I51: 409.5
A52: 2020-01-22 | B52: 3 | C52: 21151 | D52: اصلاح طرمبة ديزل فرادة فوجلي جديدة | E52: بللسمر 01 | F52: 1239 | G52: 61.95 | H52: 1300.95 | I52: 1300.95
A53: 2020-01-22 | B53: 3 | C53: 72816 | D53: بطارية+طرمبة ديزل يدوية+ليات هوا | E53: خلاطة | F53: 419.5 | G53: 20.975 | H53: 440.475 | I53: 440.48
A54: 2020-01-23 | B54: 3 | C54: 1012 | D54: احذية سفتي | E54: تنومة15 | F54: 965.71 | G54: 48.2855 | H54: 1013.9955 | I54: 1014
A55: 2020-01-23 | B55: 3 | C55: 1057 | D55: سير كسارة رقم 38عدد3 | E55: كسارة | F55: 219.05 | G55: 10.9525 | H55: 230.0025 | I55: 230
A56: 2020-01-23 | B56: 3 | C56: 6393 | D56: سخان ديزل للفراده الجديدة | E56: بللسمر 01 | F56: 59 | G56: 0 | H56: 59 | I56: 59
A57: 2020-01-23 | B57: 3 | C57: 845 | D57: غيار مبرد قير سيارة التيما | E57: تنومة15 | F57: 300 | G57: 0 | H57: 300 | I57: 300
A58: 2020-01-23 | B58: 3 | C58: 247 | D58: شراء قير جديد سيارة التيما | E58: تنومة14 | F58: 5000 | G58: 0 | H58: 5000 | I58: 5000
A59: 2020-01-23 | B59: 3 | C59: 2841 | D59: غداء عمال مكانيك | E59: بللسمر 01 | F59: 12 | G59: 0 | H59: 12 | I59: 12
A60: 2020-01-23 | B60: 3 | C60: 829 | D60: بوش قياس38 | E60: كسارة | F60: 70 | G60: 3.5 | H60: 73.5 | I60: 73.5
A61: 2020-01-23 | B61: 3 | C61: 165 | D61: سيارة فورد762 | E61: مصاريف عمومية | F61: 700 | G61: 0 | H61: 700 | I61: 700
A62: 2020-01-23 | B62: 3 | C62: 658 | D62: غداء عمال فرادة | E62: بللسمر 01 | F62: 17 | G62: 0 | H62: 17 | I62: 17
A63: 2020-01-25 | B63: 3 | C63: 2297 | D63: عشاء عمال مكانيكي للورشة | E63: بللسمر 01 | F63: 37 | G63: 0 | H63: 37 | I63: 37
A64: 2020-01-25 | B64: 3 | C64: 1127 | D64: رورا قياس30+35 | E64: كسارة | F64: 609.52 | G64: 30.476 | H64: 639.996 | I64: 640
B65: 3 | C65: اجمالى | F65: =SUM(F44:F64) -> 13591.59 | G65: =SUM(G44:G64) -> 371.7795 | H65: 13963.3695
A66: 2020-01-12 | B66: 4 | C66: 1432 | D66: تعبئة ديزل للونش | E66: تنومة 12 | F66: 20 | G66: 0 | H66: =F66+G66 -> 20
A67: 2020-01-12 | B67: 4 | C67: 223 | D67: علبة زيت دركسيون | E67: ورشة | F67: 7 | G67: 0 | H67: =F67+G67 -> 7
A68: 2020-01-12 | B68: 4 | C68: 14622 | D68: عشاء ورشة | E68: ورشة | F68: 30 | G68: 0 | H68: 30
A69: 2020-01-16 | B69: 4 | C69: 1405 | D69: صوفة دفرنس قلاب2872 | E69: النماص5 | F69: 30 | G69: 0 | H69: 30
A70: 2020-01-19 | B70: 4 | C70: 23036 | D70: غداء عمال ميكانيكي | E70: بللسمر01 | F70: 24 | G70: 0 | H70: 24
A71: 2020-01-19 | B71: 4 | C71: 189 | D71: تسكير حساب قلاب2871 | E71: كسارة | F71: 6000 | G71: 0 | H71: 6000
A72: 2020-01-19 | B72: 4 | C72: 10899 | D72: قطع غيار للفرادة الفوجلي الجديدة | E72: بللسمر01 | F72: 438.09 | G72: =F72*5% -> 21.9045 | H72: =G72+F72 -> 459.9945
A73: 2020-01-19 | B73: 4 | C73: 841 | D73: رولات للكسارة | E73: كسارة | F73: 561.9 | G73: =F73*5% -> 28.095 | H73: =G73+F73 -> 589.995
A74: 2020-01-19 | B74: 4 | C74: 840 | D74: سير للكسارة135+لي هواء للخلاطة | E74: كسارة+خلاطة | F74: 609.52 | G74: 30.476 | H74: 639.996
A75: 2020-01-19 | B75: 4 | C75: 72818 | D75: فلتر ديزل الماني فرادة فوجلي الجديدة | E75: بللسمر01 | F75: 70 | G75: 3.5 | H75: 73.5
A76: 2020-01-19 | B76: 4 | C76: 72815 | D76: بطارية 120امبير لقلاب2871 | E76: تنومه15 | F76: 740 | G76: 37 | H76: 777
A77: 2020-01-19 | B77: 4 | C77: 72817 | D77: راس بطارية لقلاب 2871 | E77: تنومه15 | F77: 32 | G77: 1.6 | H77: 33.6
A78: 2020-01-19 | B78: 4 | C78: 1402 | D78: ساعة حرارة قلاب 2871 | E78: تنومه15 | F78: 219.05 | G78: 10.9525 | H78: 230.0025
A79: 2020-01-19 | B79: 4 | C79: 145 | D79: اسمنت للخلاطه الاسفلت | E79: خلاطة | F79: 140 | G79: 0 | H79: 140
A80: 2020-01-20 | B80: 4 | D80: عشاء عمال اسفلت | E80: بني عمر | F80: 117 | G80: 0 | H80: 117
A81: 2020-01-20 | B81: 4 | C81: 654 | D81: وجبة غداء عمال الورشة | E81: ورشة | F81: 38 | G81: 0 | H81: 38
A82: 2020-01-19 | B82: 4 | C82: 9945 | D82: صوفة بصطون خلفي+لي لديترسفلي+علوي | E82: تنومه15 | F82: 343.8 | G82: 17.19 | H82: 360.99
A83: 2020-01-20 | B83: 4 | C83: 72814 | D83: بطارييات رصاصة كفرات+رصاصة حديد | E83: بللسمر01 | F83: 640 | G83: 32 | H83: 672
A84: 2020-01-20 | B84: 4 | C84: 72854 | D84: ساعة حرارة اسفلت | E84: بني عمر | F84: 220 | G84: 11 | H84: 231
A85: 2020-01-23 | B85: 4 | C85: 964 | D85: عشاء عمال ميكانيك فراده | E85: بللسمر01 | F85: 70 | G85: 0 | H85: 70
B86: 4 | C86: اجمالى | F86: =SUM(F66:F85) -> 10350.36 | G86: =SUM(G66:G85) -> 193.718 | H86: 10544.078
A87: 2020-01-25 | B87: 5 | C87: 1367 | D87: علبة كلتش سيارة متسوبيشي2413 | E87: خلاطة | F87: 542.85 | G87: =F87*5% -> 27.1425 | H87: =F87+G87 -> 569.9925
A88: 2020-01-25 | B88: 5 | C88: 73124 | D88: بطاريةعدد2-150امبير مولد كسارة | E88: كسارة | F88: 900 | G88: =F88*5% -> 45 | H88: =F88+G88 -> 945
A89: 2020-01-26 | B89: 5 | C89: 119 | D89: اصلاح سلف سيارة فورد 762 | E89: مصاريف عمومية | F89: 550 | G89: 0 | H89: 550
A90: 2020-01-26 | B90: 5 | C90: 166 | D90: اصلاح ميزانية سيارة التيما 6339 | E90: تنومة15 | F90: 200 | G90: 0 | H90: 200
A91: 2020-01-26 | B91: 5 | C91: 872 | D91: بلف هواء+وصلات هواء قلاب مان5205 | E91: تنومة15 | F91: 600 | G91: 0 | H91: 600
A92: 2020-01-26 | B92: 5 | C92: 3088 | D92: فلنجة هوب امامي سيارة التيما 6339 | E92: تنومة15 | F92: 500 | G92: =F92*5% -> 25 | H92: 525
A93: 2020-01-26 | B93: 5 | C93: 47432 | D93: ساعة حرارة اسفلت للخلاطة | E93: خلاطة | F93: 109.52 | G93: 5.476 | H93: 114.996
A94: 2020-01-26 | B94: 5 | C94: 9954 | D94: طقم صوفة +طقم اصلاح بوبكات توسان | E94: تنومة15 | F94: 571.43 | G94: 28.5715 | H94: 600.0015
A95: 2020-01-27 | B95: 5 | C95: 2254 | D95: لمبة اماية سيارة مازدا3369 | E95: تنومة15 | F95: 25 | G95: 0 | H95: 25
A96: 2020-01-27 | B96: 5 | C96: 9780 | D96: غسيل سيارة مازدا3369 | E96: تنومة15 | F96: 25 | G96: 0 | H96: 25
A97: 2020-01-27 | B97: 5 | C97: 1404 | D97: قفل ذهبي صغير+وسط رصاصة ترابية | E97: بللسمر01 | F97: 20 | G97: 0 | H97: 20
A98: 2020-01-27 | B98: 5 | C98: 19152 | D98: عدة ورشة | E98: ورشة | F98: 71 | G98: 3.55 | H98: 74.55
A99: 2020-01-27 | B99: 5 | C99: 46765 | D99: سنون لشيول400رقم6632 | E99: خلاطة | F99: 390.48 | G99: 19.524 | H99: 410.004
A100: 2020-01-28 | B100: 5 | C100: 46788 | D100: فرشاة تنظيف اسفلت | E100: تنومة15 | F100: 1238.1 | G100: 61.905 | H100: 1300.005
A101: 2020-01-28 | B101: 5 | C101: 1278 | D101: حبة قياس 36 عدة للكسارة | E101: كسارة | F101: 47.62 | G101: 2.381 | H101: 50.001
A102: 2020-01-29 | B102: 5 | C102: 122 | D102: اصلاح كهرباء سيارة فورد762 | E102: مصاريف عمومية | F102: 200 | G102: 0 | H102: 200
A103: 2020-01-26 | B103: 5 | C103: 7330 | D103: كرسي هزاز ىرصاصة ترابيةعدد8 | E103: بللسمر01 | F103: 1440 | G103: 72 | H103: 1512
A104: 2020-01-29 | B104: 5 | C104: 50253 | D104: افرول قطعتين ثقيل رصاصي عدد2+سترة سفتي عدد2 | E104: خلاطة | F104: 110 | G104: 5.5 | H104: 115.5
A105: 2020-01-26 | B105: 5 | C105: 1418 | D105: سيليكون اصلي | E105: ورشة | F105: 140 | G105: 7 | H105: 147
A106: 2020-01-30 | B106: 5 | C106: 1483 | D106: صوفة | E106: كسارة | F106: 34.28 | G106: 1.714 | H106: 35.994
A107: 2020-01-30 | B107: 5 | C107: 46809 | D107: فرشاة تنظيف اسفلت | E107: تنومة15 | F107: 723.81 | G107: 36.1905 | H107: 760.0005
B108: 5 | C108: اجمالى | F108: =SUM(F87:F107) -> 8439.09 | G108: =SUM(G87:G107) -> 340.9545 | H108: 8780.0445
A109: 2020-01-31 | B109: 6 | C109: 2838 | D109: محبس شطرطون سكن العمال | E109: مصروفات عمومية | F109: 18 | G109: 0 | H109: =G109+F109 -> 18
A110: 2020-01-27 | B110: 6 | C110: 19152 | D110: عدة للميكانيكي | E110: ورشة | F110: 71 | G110: =F110*5% -> 3.55 | H110: =G110+F110 -> 74.55
A111: 2020-01-04 | B111: 6 | C111: 2866 | D111: اجار سباك للكسارة | E111: كسارة | F111: 350 | G111: 0 | H111: 350
A112: 2020-01-11 | B112: 6 | C112: 190 | D112: ضيافة مكتب | E112: تنومة | F112: 42 | G112: 0 | H112: 42
A113: 2020-01-12 | B113: 6 | C113: 357 | D113: شراء مكيف مستعمل | E113: كسارة | F113: 450 | G113: 0 | H113: 450
A114: 2020-01-12 | B114: 6 | C114: 9945 | D114: فلتر هواء بوبكات موستنج | E114: النماص5 | F114: 371.43 | G114: 18.5715 | H114: 390.0015
A115: 2020-01-12 | B115: 6 | C115: 486 | D115: راس شيلمو غاز+طفوف لحام طويلة | E115: خلاطة | F115: 55.24 | G115: 2.762 | H115: 58.002
A116: 2020-01-12 | B116: 6 | C116: 77 | D116: جوزة ذراع كلتش+صحن وفحمة كلتش قلاب2872 | E116: كسارة | F116: 1020 | G116: 51 | H116: 1071
A117: 2020-01-12 | B117: 6 | C117: 501 | D117: بكرة كمبروسر هواء | E117: كسارة | F117: 84.76 | G117: 4.238 | H117: 88.998
A118: 2020-01-12 | B118: 6 | C118: 517 | D118: كبس لي هيدروليك دركسيون متسوبيشي2413 | E118: خلاطة | F118: 71.43 | G118: 3.5715 | H118: 75.0015
A119: 2020-01-12 | B119: 6 | C119: 16965 | D119: قطع سباكة | E119: كسارة | F119: 361 | G119: 18.05 | H119: 379.05
A120: 2020-01-01 | B120: 6 | C120: 120 | D120: كلتش نحاس سيارة mc1رقم24 | E120: النماص5 | F120: 1700 | G120: 0 | H120: 1700
A121: 2020-01-12 | B121: 6 | D121: غداء سواق ونش خميس مشيط | E121: مصروفات عمومية | F121: 17 | G121: 0 | H121: 17
A122: 2020-01-12 | B122: 6 | C122: 303 | D122: خراطة هداف مع الديسك للونش3521 | E122: النماص5 | F122: 250 | G122: 0 | H122: 250
A123: 2020-01-13 | B123: 6 | C123: 2374 | D123: غداء سواق ونش خميس مشيط | E123: مصروفات عمومية | F123: 20 | G123: 0 | H123: 20
A124: 2020-01-13 | B124: 6 | C124: 2056 | D124: لحام رديتير ماء بوبكات توسان | E124: تنومة15 | F124: 150 | G124: 0 | H124: 150
A125: 2020-01-13 | B125: 6 | C125: 54 | D125: اصلاح دينمو ولحام السلك | E125: كسارة | F125: 300 | G125: 0 | H125: 300
A126: 2020-01-14 | B126: 6 | C126: 46618 | D126: ديزل للونش بخميس مشيط | E126: مصروفات عمومية | F126: 50 | G126: 0 | H126: 50
A127: 2020-01-15 | B127: 6 | C127: 4160 | D127: غداء سواق ونش عدد2 خميس مشيط | E127: مصروفات عمومية | F127: 24 | G127: 0 | H127: 24
A128: 2020-01-15 | B128: 6 | C128: 1102 | D128: راس مشحمة+مفتاح سيفون حبل عدة للورشة | E128: ورشة | F128: 167 | G128: 8.35 | H128: 175.35
A129: 2020-01-15 | B129: 6 | C129: 145863 | D129: عدة ورشة | E129: ورشة | F129: 121 | G129: 6.05 | H129: 127.05
A130: 2020-01-16 | B130: 6 | C130: 163 | D130: علبة زيت هيدروليك متسوبيشي2413 | E130: خلاطة | F130: 100 | G130: 0 | H130: 100
A131: 2020-01-16 | B131: 6 | C131: 6368 | D131: سيفون سيارة نسيان1639 | E131: كسارة | F131: 330 | G131: 16.5 | H131: 346.5
A132: 2020-01-16 | B132: 6 | C132: 861 | D132: سير مروحة متسوبيشي2413 | E132: كسارة | F132: 100 | G132: 5 | H132: 105
A133: 2020-01-16 | B133: 6 | C133: 2865 | D133: اجار تريلا نقل بريمة من الرياض الى تنومة | E133: كسارة | F133: 3000 | G133: 0 | H133: 3000
B134: 6 | C134: اجمالى | F134: =SUM(F109:F133) -> 9223.86 | G134: =SUM(G109:G133) -> 137.643 | H134: 9361.503
A135: 2020-01-01 | B135: 7 | D135: تسوية العهدة خصم من راتب شهر نوفمبر 2019 | E135: تسويات | F135: 1500 | G135: 0 | H135: =G135+F135 -> 1500
A136: 2020-01-01 | B136: 7 | D136: تسوية العهدة خصم من راتب شهر ديسمبر 2019 | E136: تسويات | F136: 1500 | G136: 0 | H136: =G136+F136 -> 1500
A137: 2020-01-19 | B137: 7 | D137: سداد محل قطع غيار السعادة | E137: تسويات | F137: 10000 | G137: 0 | H137: 10000
A138: 2020-01-20 | B138: 7 | D138: سداد فاتورة مطبعة تكسب | E138: تسويات | F138: 3200 | G138: 0 | H138: 3200
A139: 2020-01-31 | B139: 7 | D139: تسوية العهدة خصم من راتب شهر يناير 2020م | E139: تسويات | F139: 1500 | G139: 0 | H139: 1500
B140: 7 | C140: اجمالى | F140: =SUM(F135:F139) -> 17700 | G140: =SUM(G135:G139) -> 0 | H140: 17700
A141: TOTAL | F141: =SUMIF($C$8:$C$140,$C$140,F8:F140) -> 76015.87 | G141: =SUMIF($C$8:$C$140,$C$140,G8:G140) -> 1613.875 | H141: 77629.745 | J141: 24 | K141: قطع غيار رصاصة ترابية | L141: 27/1/2020 | M141: 2500
J142: 25 | K142: عهدة سداد فواتير ديزل | L142: 30/1/2020 | M142: 1500
A143: مسوؤل العهدة | D143: توقيع المسئول | E143: المحاسب | G143: المدير العام | J143: الإجمالي | M143: =SUM(M4:M142) -> 72968

Sheet فبراير
J3: بيان بالعهدة من تاريخ 01 فبراير 2020م الي 29 فبراير 2020م
J5: م | K5: البيان | L5: التاريخ | M5: المبلغ
A6: التاريخ : | C6: 2020-02-29 | E6: رصيد العهدة | F6: 76699.925 | G6: الرصيد الحالي | H6: =F6-H70 -> 59067.922 | J6: 1 | K6: عهدة عبد الرحمن قطع غيار | L6: 2020-04-02 | M6: 3350
A7: التاريخ | B7: رقم الكشف | C7: رقم الفاتورة | D7: البيان | E7: اسم المشروع | F7: المبلغ | G7: القيمة المضافة | H7: اجمالي المبلغ | J7: 2 | K7: عهدة عبد الرحمن صيانة معدات | L7: 2020-08-02 | M7: 2000
A8: 2020-02-01 | B8: 1 | C8: 46331 | D8: بانزين سيارة فورد رقم762 | E8: مصروفات عمومية | F8: 50 | G8: 0 | H8: =G8+F8 -> 50 | J8: 3 | K8: صيانة ونش رقم 3521 | L8: 2020-10-02 | M8: 1000
A9: 2020-02-01 | B9: 1 | C9: 9795 | D9: غسيل سيارة فورد762+غيار زيت وفلتر زيت | E9: مصروفات عمومية | F9: 252 | G9: 0 | H9: =G9+F9 -> 252 | J9: 4 | K9: قطع غيار | L9: 2020-12-02 | M9: 6500
A10: 2020-02-02 | B10: 1 | C10: 3186 | D10: غدا عمال ورشة | E10: ورشة | F10: 17 | G10: 0 | H10: 17 | J10: 5 | K10: مسامير للخلاطة الجديدة | L10: 13/2 | M10: 2600
A11: 2020-02-02 | B11: 1 | C11: 16844 | D11: بوية لدهن تنكي ديزل الخلاطة | E11: خلاطة | F11: 90 | G11: =F11*5% -> 4.5 | H11: 94.5 | J11: 6 | K11: قطع غيار | L11: 13/2 | M11: 1000
A12: 2020-02-04 | B12: 1 | C12: 46877 | D12: بانزين سيارة التيما6339 | E12: مصروفات عمومية | F12: 25 | G12: 0 | H12: 25 | J12: 7 | K12: قيمة قطعه غيار | L12: 15/2 | M12: 2200
A13: 2020-02-04 | B13: 1 | C13: 443 | D13: غداء عبدالرحمن | E13: مصروفات عمومية | F13: 20 | G13: 0 | H13: 20 | J13: 8 | K13: قطع غيار كمبرسور هواء اطلس | L13: 16/2 | M13: 3300
A14: 2020-02-04 | B14: 1 | C14: 2239 | D14: طرمبة ديزل تحضير فراده فوجلي قديمة | E14: النماص5 | F14: 400 | G14: 20 | H14: 420 | J14: 9 | K14: شراء سفتي للعمال | L14: 18/2 | M14: 1000
A15: 2020-02-04 | B15: 1 | C15: 210 | D15: بسامير فرادة فوجلي جديدة | E15: بللسمر01 | F15: 14.45 | G15: 0.7225 | H15: 15.1725 | J15: الإجمالي | M15: =SUM(M6:M14) -> 22950
A16: 2020-02-04 | B16: 1 | C16: 132642 | D16: قطع تبديل غيار قلاب صيني2871 | E16: كسارة | F16: 630 | G16: 31.5 | H16: =G16+F16 -> 661.5
A17: 2020-02-04 | B17: 1 | C17: 1729 | D17: فلاتر زيت +فلاتر ديزل فرادة فوجلي جديدة | E17: النماص5 | F17: 161.9 | G17: 8.095 | H17: 169.995
A18: 2020-02-04 | B18: 1 | C18: 662 | D18: رشاش ماء عدد2 | E18: كسارة | F18: 57.14 | G18: 2.857 | H18: 59.997
A19: 2020-02-04 | B19: 1 | C19: 1620 | D19: طرمبة هواء ايطالي لكمبروسر | E19: كسارة | F19: 1261.9 | G19: 63.095 | H19: 1324.995
A20: 2020-02-04 | B20: 1 | C20: 1621 | D20: بخاخ اميركي ورشة كهرباء | E20: ورشة | F20: 50 | G20: 2 | H20: 52
A21: 2020-02-05 | B21: 1 | C21: 298 | D21: فلتر ديزل+فلتز زيت شيول400 | E21: خلاطة | F21: 400 | G21: 20 | H21: 420
A22: 2020-02-06 | B22: 1 | C22: 19503 | D22: معدات ورشة | E22: ورشة | F22: 28 | G22: 1.4 | H22: 29.4
A23: 2020-02-06 | B23: 1 | C23: 1833 | D23: عشاء عمال ميكانيكي | E23: النماص5 | F23: 59 | G23: 0 | H23: 59
A24: 2020-02-02 | B24: 1 | C24: 884 | D24: دينمو قلاب مرسيدس | E24: كسارة | F24: 750 | G24: 0 | H24: 750
B25: 1 | C25: اجمالى | F25: =SUM(F8:F24) -> 4266.39 | G25: =SUM(G8:G24) -> 154.1695 | H25: 4420.5595
A26: 2020-02-09 | B26: 2 | C26: 2598 | D26: قفل باب ثابت قلاب2871 | E26: كسارة | F26: 29 | G26: =F26*5% -> 1.45 | H26: =G26+F26 -> 30.45
A27: 2020-02-13 | B27: 2 | C27: 188292 | D27: قطع غيار فرامل قلا2871 | E27: كسارة | F27: 760 | G27: =F27*5% -> 38 | H27: =G27+F27 -> 798
A28: 2020-02-13 | B28: 2 | C28: 1089 | D28: رومان هوب امامي مازدا3371 | E28: تنومة15 | F28: 66.66 | G28: 3.333 | H28: 69.993
A29: 2020-02-13 | B29: 2 | C29: 2169 | D29: سير دقاق 9000 | E29: كسارة | F29: 2360 | G29: 118 | H29: 2478
A30: 2020-02-15 | B30: 2 | C30: 1858 | D30: ديزل للونش | E30: مصروفات عمومية | F30: 50 | G30: 0 | H30: 50
A31: 2020-02-16 | B31: 2 | C31: 19872 | D31: فيوز لمولد الكسارة | E31: كسارة | F31: 25 | G31: 0 | H31: 25
A32: 2020-02-17 | B32: 2 | C32: 8269 | D32: بانزين سيارة مازدا 3866 | E32: مصروفات عمومية | F32: 50 | G32: 0 | H32: 50
A33: 2020-02-17 | B33: 2 | C33: 301 | D33: مروحة كامله+كرسي كمروسر هراء+فلاتر كاملة | E33: خلاطة | F33: 2180 | G33: 0 | H33: 2180
A34: 2020-02-17 | B34: 2 | C34: 2417 | D34: رومان 30206 | E34: خلاطة | F34: 36.19 | G34: 1.8095 | H34: 37.9995
A35: 2020-02-17 | B35: 2 | C35: 47600 | D35: راس كبل لمولد الكسارة | E35: كسارة | F35: 520 | G35: 26 | H35: 546
A36: 2020-02-17 | B36: 2 | C36: 14171 | D36: مسدس ديزل+لي المسدس | E36: خلاطة | F36: 545.71 | G36: 27.2855 | H36: 572.9955
A37: 2020-02-17 | B37: 2 | C37: 14172 | D37: كوع متحرك لمسدس الديزل | E37: خلاطة | F37: 67.62 | G37: 3.381 | H37: 71.001
A38: 2020-02-19 | B38: 2 | C38: 759 | D38: سير مروحة a36 رصاصة صغيرة دينباك | E38: نماص 5 | F38: 20 | G38: 0 | H38: 20
A39: 2020-02-19 | B39: 2 | C39: 219 | D39: خرط سنة قلاب صيني 2871 | E39: كسارة | F39: 40 | G39: 0 | H39: 40
A40: 2020-02-20 | B40: 2 | C40: 2612 | D40: صوف للغربال كسارة | E40: كسارة | F40: 140 | G40: 7 | H40: 147
A41: 2020-02-20 | B41: 2 | C41: 2638 | D41: كرسي ماكينة رصاصة الصغيرة اليدوية | E41: تنومة15 | F41: 181 | G41: 9 | H41: 190
A42: 2020-02-20 | B42: 2 | C42: 70121302717 | D42: مسامير ووردات للكسارة | E42: كسارة | F42: 95.24 | G42: 4.76 | H42: 100
A43: 2020-02-15 | B43: 2 | C43: 663 | D43: اجرة تركيب يد غيار عصا القير للونش | E43: تنومة15 | F43: 1800 | G43: 0 | H43: 1800
A44: 2020-02-13 | B44: 2 | C44: 5068 | D44: قطع عصا القير مع الحشوة للونش | E44: تنومة15 | F44: 3714.29 | G44: 185.7145 | H44: 3900.0045
A45: 2020-02-13 | B45: 2 | C45: 22841 | D45: كبل بلف هواء للونش | E45: تنومة15 | F45: 40 | G45: 2 | H45: 42
A46: 2020-02-15 | B46: 2 | C46: 188322 | D46: بسمار هواء12قصير للونش | E46: تنومة15 | F46: 15 | G46: 0.75 | H46: 15.75
A47: 2020-02-15 | B47: 2 | C47: 188373 | D47: اصبع بطارية نحاس للونش | E47: تنومة15 | F47: 45 | G47: 2.25 | H47: 47.25
B48: 2 | C48: اجمالى | F48: =SUM(F26:F47) -> 12780.71 | G48: =SUM(G26:G47) -> 430.7335 | H48: 13211.4435
A49: 2020-02-18 | B49: 3 | C49: 681976 | D49: عشاء عرفان ميكانيكي | E49: النماص5 | F49: 20 | G49: 0 | H49: =G49+F49 -> 20
A50: 2020-02-20 | B50: 3 | C50: 222 | D50: خراطة وردة للورشة | E50: تنومة15 | F50: 20 | G50: 0 | H50: =G50+F50 -> 20
A51: 2020-02-22 | B51: 3 | C51: 648 | D51: قاعدة رصاصة صغيرة يدوية | E51: تنومة15 | F51: 20 | G51: 0 | H51: 20
A52: 2020-02-20 | B52: 3 | C52: 179 | D52: ضيافة مكتب تنومه | E52: مصاريف عمومية | F52: 53 | G52: 0 | H52: 53
A53: 2020-02-24 | B53: 3 | C53: 17130 | D53: زاوية +مبسطة لصب القواعد | E53: تنومه12 | F53: 37 | G53: =F53*5% -> 1.85 | H53: 38.85
A54: 2020-02-29 | B54: 3 | C54: 17226 | D54: زاوية لصب القواعد | E54: تنومه12 | F54: 140 | G54: 7 | H54: 147
A55: 2020-02-29 | B55: 3 | C55: 21909 | D55: كلبسات سيارة مازدا3369 | E55: خلاطة | F55: 9.5 | G55: 0.475 | H55: 9.975
A56: 2020-02-20 | B56: 3 | C56: 70121302718 | D56: بسامير للخلاطه الجديدة | E56: خلاطة | F56: 2331.43 | G56: 116.5715 | H56: 2448.0015
A57: 2020-02-06 | B57: 3 | C57: 27 | D57: شفط مجاري الورشة | E57: الورشة | F57: 200 | G57: 0 | H57: 200
A58: 2020-02-08 | B58: 3 | C58: 1501 | D58: صوفه امامية +سير | E58: خلاطة | F58: 350 | G58: 0 | H58: 350
A59: 2020-02-08 | B59: 3 | C59: 71 | D59: لباس عمال | E59: كسارة | F59: 60 | G59: 0 | H59: 60
A60: 2020-02-09 | B60: 3 | C60: 2249 | D60: فلاتر كمروسر كاملة | E60: خلاطة | F60: 85 | G60: 0 | H60: 85
A61: 2020-02-09 | B61: 3 | C61: 25224 | D61: فلتر ماء ديزل لمولد سكن العمال | E61: خلاطة | F61: 90.48 | G61: 4.524 | H61: 95.004
A62: 2020-02-09 | B62: 3 | C62: 7611 | D62: فلتر ماء | E62: كسارة | F62: 267 | G62: 13.35 | H62: 280.35
A63: 2020-02-10 | B63: 3 | C63: 1354 | D63: ضيافة مكتب تنومه | E63: مصاريف عمومية | F63: 44.5 | G63: 0 | H63: 44.5
A64: 2020-02-10 | B64: 3 | C64: 136 | D64: نقل الونش من تنومه لخميس مشيط | E64: مصاريف عمومية | F64: 800 | G64: 0 | H64: 800
A65: 2020-01-27 | B65: 3 | C65: 7032 | D65: شراء ديزل للخلاطة | E65: خلاطة | F65: 1470 | G65: 0 | H65: 1470
A66: 2020-02-08 | B66: 3 | C66: 1496 | D66: دفاية كهربا للمكتب | E66: مصاريف عمومية | F66: 130 | G66: 0 | H66: 130
A67: 2020-02-11 | B67: 3 | C67: 900003 | D67: ارسالية كبيوتر فراده جديدة للرياض | E67: مصاريف عمومية | F67: 126 | G67: 0 | H67: 126
A68: 2020-02-12 | B68: 3 | C68: 889 | D68: دينمو كهربا للقلاب المان2505 | E68: كسارة | F68: 350 | G68: 0 | H68: 350
B69: 3 | C69: اجمالى | F69: =SUM(F49:F68) -> 6603.91 | G69: =SUM(G49:G68) -> 143.7705 | H69: 6747.6805
A70: TOTAL | F70: =SUMIF($C$8:$C$68,$C$69, F8:F68) -> 17047.1 | G70: =SUMIF($C$8:$C$68,$C$69, G8:G68) -> 584.903 | H70: =SUMIF($C$8:$C$68,$C$69, H8:H68) -> 17632.003
A72: مسوؤل العهدة | D72: توقيع المسئول | E72: المحاسب | G72: المدير العام

Sheet تقرير 1
B2: رقم الكشف
B3: 2
A4: التاريخ | B4: رقم الكشف | C4: رقم الفاتورة | D4: البيان | E4: اسم المشروع | F4: المبلغ | G4: القيمة المضافة | H4: اجمالي المبلغ
A5: 2020-01-05 | B5: 2 | C5: 6465 | D5: طعام للعمال مشروع النماص | E5: النماص 05 | F5: 19 | G5: 0 | H5: 19
A6: 1900-01-05 | B6: 2 | C6: بدون | D6: اكل للعمال | E6: النماص 05 | F6: 9 | G6: 0 | H6: 9
A7: 2020-01-06 | B7: 2 | C7: 91 | D7: اجرة نقل جنزير فرادة من الخميس الي تنومة | E7: النماص 05 | F7: 400 | G7: 0 | H7: 400
A8: 2020-01-07 | B8: 2 | C8: 16902 | D8: مواد سباكة للكسارة | E8: الكسارة | F8: 467 | G8: 23.35 | H8: 490.35
A9: 2020-01-08 | B9: 2 | C9: 39403 | D9: اكل للميكانكية تركيب جنزير فرادة | E9: النماص 05 | F9: 43 | G9: 0 | H9: 43
A10: 2020-01-08 | B10: 2 | C10: 1998 | D10: بنزبن سيارة مازدا رقم 3369 | E10: الخلاطة | F10: 20 | G10: 0 | H10: 20
A11: 2020-01-08 | B11: 2 | C11: 100 | D11: طرمبة دركسيون سيارة متسوبيشي رقم 2413 | E11: الخلاطة | F11: 800 | G11: 0 | H11: 800
A12: 2020-01-08 | B12: 2 | C12: 97 | D12: فلاتر زيت وطرمبة كلتش وقماش سيارة مازدا رقم 3371 | E12: تنومة 14 | F12: 328.58 | G12: 16.43 | H12: 345.01
A13: 2020-01-08 | B13: 2 | C13: 187730 | D13: فلتر زيت وسلك دعسة ديزل رصاصة ترابية ديناباك | E13: بللسمر 01 | F13: 571.38 | G13: 28.57 | H13: 599.95
A14: 2020-01-08 | B14: 2 | C14: 22436 | D14: مشاحم للكسارة مع صابونات للشيول 2183 | E14: الكسارة | F14: 33.33 | G14: 1.67 | H14: 35
A15: 2020-01-08 | B15: 2 | C15: 10096 | D15: مشام مقاس 12 مم ومشاحام سواء سن ناعم للكسارة | E15: الكسارة | F15: 11.45 | G15: 0.57 | H15: 12.02
A16: 2020-01-09 | B16: 2 | C16: 9206 | D16: غسيل سيارة انفنتي وسيارة مازدا رقم 3369 | E16: مصروفات عمومية ابها | F16: 60 | G16: 0 | H16: 60
A17: 2020-01-09 | B17: 2 | C17: 188 | D17: عشاء للعمال تركسب جنزير فرادة | E17: النماص 05 | F17: 38 | G17: 0 | H17: 38
A18: 2020-01-09 | B18: 2 | C18: 262 | D18: تصليح 2 صدام مع رش بوهية وتلميع سيارة انفنتي | E18: مصروفات عمومية ابها | F18: 1500 | G18: 0 | H18: 1500
A19: 2020-01-09 | B19: 2 | C19: 102 | D19: مسامير جنزير فرادة فوجلي | E19: النماص 05 | F19: 24 | G19: 0 | H19: 24
A20: 2020-01-10 | B20: 2 | C20: 2729 | D20: عشاء للعمال | E20: النماص 05 | F20: 25 | G20: 0 | H20: 25
B21: 2 | C21: اجمالى | F21: 4349.74 | G21: 70.59 | H21: 4420.33

Sheet تقرير 2
B2: رقم الكشف
B3: 1
A4: التاريخ | B4: رقم الكشف | C4: رقم الفاتورة | D4: البيان | E4: اسم المشروع | F4: المبلغ | G4: القيمة المضافة | H4: اجمالي المبلغ
A5: 2020-02-01 | B5: 1 | C5: 46331 | D5: بانزين سيارة فورد رقم762 | E5: مصروفات عمومية | F5: 50 | G5: 0 | H5: 50
A6: 2020-02-01 | B6: 1 | C6: 9795 | D6: غسيل سيارة فورد762+غيار زيت وفلتر زيت | E6: مصروفات عمومية | F6: 252 | G6: 0 | H6: 252
A7: 2020-02-02 | B7: 1 | C7: 3186 | D7: غدا عمال ورشة | E7: ورشة | F7: 17 | G7: 0 | H7: 17
A8: 2020-02-02 | B8: 1 | C8: 16844 | D8: بوية لدهن تنكي ديزل الخلاطة | E8: خلاطة | F8: 90 | G8: 4.5 | H8: 94.5
A9: 2020-02-04 | B9: 1 | C9: 46877 | D9: بانزين سيارة التيما6339 | E9: مصروفات عمومية | F9: 25 | G9: 0 | H9: 25
A10: 2020-02-04 | B10: 1 | C10: 443 | D10: غداء عبدالرحمن | E10: مصروفات عمومية | F10: 20 | G10: 0 | H10: 20
A11: 2020-02-04 | B11: 1 | C11: 2239 | D11: طرمبة ديزل تحضير فراده فوجلي قديمة | E11: النماص5 | F11: 400 | G11: 20 | H11: 420
A12: 2020-02-04 | B12: 1 | C12: 210 | D12: بسامير فرادة فوجلي جديدة | E12: بللسمر01 | F12: 14.45 | G12: 0.7225 | H12: 15.1725
A13: 2020-02-04 | B13: 1 | C13: 132642 | D13: قطع تبديل غيار قلاب صيني2871 | E13: كسارة | F13: 630 | G13: 31.5 | H13: 661.5
A14: 2020-02-04 | B14: 1 | C14: 1729 | D14: فلاتر زيت +فلاتر ديزل فرادة فوجلي جديدة | E14: النماص5 | F14: 161.9 | G14: 8.095 | H14: 169.995
A15: 2020-02-04 | B15: 1 | C15: 662 | D15: رشاش ماء عدد2 | E15: كسارة | F15: 57.14 | G15: 2.857 | H15: 59.997
A16: 2020-02-04 | B16: 1 | C16: 1620 | D16: طرمبة هواء ايطالي لكمبروسر | E16: كسارة | F16: 1261.9 | G16: 63.095 | H16: 1324.995
A17: 2020-02-04 | B17: 1 | C17: 1621 | D17: بخاخ اميركي ورشة كهرباء | E17: ورشة | F17: 50 | G17: 2 | H17: 52
A18: 2020-02-05 | B18: 1 | C18: 298 | D18: فلتر ديزل+فلتز زيت شيول400 | E18: خلاطة | F18: 400 | G18: 20 | H18: 420
A19: 2020-02-06 | B19: 1 | C19: 19503 | D19: معدات ورشة | E19: ورشة | F19: 28 | G19: 1.4 | H19: 29.4
A20: 2020-02-06 | B20: 1 | C20: 1833 | D20: عشاء عمال ميكانيكي | E20: النماص5 | F20: 59 | G20: 0 | H20: 59
A21: 2020-02-02 | B21: 1 | C21: 884 | D21: دينمو قلاب مرسيدس | E21: كسارة | F21: 750 | G21: 0 | H21: 750
B22: 1 | C22: اجمالى | F22: 4266.39 | G22: 154.1695 | H22: 4420.5595
